[Event "Schack-SM 2023: Junior-SM"]
[Site "Helsingborg Arena, Mellersta Stenbocksgatan 14, Helsingborg, Sweden"]
[Date "2023.07.01"]
[Round "1.2"]
[White "Wernberg, Hugo"]
[Black "Joensson, Oscar"]
[Result "1/2-1/2"]
[TimeControl "90 minutes for 40 moves + 30 minutes for the rest of the game + 30 seconds per move from move one."]
[WhiteTitle "FM"]
[WhiteElo "2217"]
[BlackElo "2077"]

1. d4 {[%clk 01:30:56]} {[%emt 00:00:03]} Nf6 {[%clk 01:30:55]} {[%emt
00:00:05]} 2. c4 {[%clk 01:30:33]} {[%emt 00:00:54]} g6 {[%clk 01:31:20]}
{[%emt 00:00:05]} 3. Nf3 {[%clk 01:30:33]} {[%emt 00:00:29]} Bg7 {[%clk
01:31:43]} {[%emt 00:00:07]} 4. g3 {[%clk 01:30:09]} {[%emt 00:00:55]} O-O
{[%clk 01:29:57]} {[%emt 00:02:15]} 5. Bg2 {[%clk 01:30:15]} {[%emt 00:00:24]}
d6 {[%clk 01:30:08]} {[%emt 00:00:19]} 6. Nc3 {[%clk 01:29:47]} {[%emt
00:00:58]} Nc6 {[%clk 01:29:36]} {[%emt 00:01:03]} 7. d5 {[%clk 01:23:35]}
{[%emt 00:06:42]} Na5 {[%clk 01:23:35]} {[%emt 00:06:30]} 8. Nd2 {[%clk
01:19:44]} {[%emt 00:04:21]} c5 {[%clk 01:23:29]} {[%emt 00:00:36]} 9. O-O
{[%clk 01:18:26]} {[%emt 00:01:48]} e6 {[%clk 01:18:11]} {[%emt 00:05:49]} 10.
Rb1 {[%clk 01:17:33]} {[%emt 00:01:22]} exd5 {[%clk 01:04:02]} {[%emt
00:14:39]} 11. cxd5 {[%clk 01:17:41]} {[%emt 00:00:22]} b6 {[%clk 00:54:01]}
{[%emt 00:10:31]} 12. Nde4 {[%clk 01:03:52]} {[%emt 00:14:19]} Nxe4 {[%clk
00:46:57]} {[%emt 00:07:34]} 13. Nxe4 {[%clk 01:00:04]} {[%emt 00:04:18]} Bf5
{[%clk 00:47:07]} {[%emt 00:00:20]} 14. Bg5 {[%clk 00:50:59]} {[%emt 00:09:35]}
f6 {[%clk 00:36:59]} {[%emt 00:10:39]} 15. Bf4 {[%clk 00:42:14]} {[%emt
00:09:15]} Bxe4 {[%clk 00:27:27]} {[%emt 00:10:02]} 16. Bxe4 {[%clk 00:42:22]}
{[%emt 00:00:22]} f5 {[%clk 00:27:35]} {[%emt 00:00:22]} 17. Bg2 {[%clk
00:38:18]} {[%emt 00:04:34]} Nc4 {[%clk 00:14:20]} {[%emt 00:13:46]} 18. Qc2
{[%clk 00:23:33]} {[%emt 00:15:14]} b5 {[%clk 00:11:06]} {[%emt 00:03:44]} 19.
Bc1 {[%clk 00:19:53]} {[%emt 00:04:09]} Qd7 {[%clk 00:07:48]} {[%emt 00:03:49]}
20. e4 {[%clk 00:14:45]} {[%emt 00:05:37]} Rae8 {[%clk 00:05:54]} {[%emt
00:02:24]} 21. Bh3 {[%clk 00:12:23]} {[%emt 00:02:53]} Bd4 {[%clk 00:04:05]}
{[%emt 00:02:18]} 22. Kh1 {[%clk 00:10:58]} {[%emt 00:01:55]} Qf7 {[%clk
00:03:02]} {[%emt 00:01:33]} 23. b3 {[%clk 00:06:11]} {[%emt 00:05:16]} Nb6
{[%clk 00:02:56]} {[%emt 00:00:36]} 24. Bh6 {[%clk 00:05:54]} {[%emt 00:00:48]}
Bg7 {[%clk 00:01:52]} {[%emt 00:01:35]} 25. Bxg7 {[%clk 00:05:11]} {[%emt
00:01:12]} Kxg7 {[%clk 00:02:14]} {[%emt 00:00:08]} 26. f3 {[%clk 00:04:39]}
{[%emt 00:01:02]} Re5 {[%clk 00:01:59]} {[%emt 00:00:45]} 27. Bg2 {[%clk
00:02:16]} {[%emt 00:02:53]} fxe4 {[%clk 00:01:30]} {[%emt 00:01:00]} 28. fxe4
{[%clk 00:01:55]} {[%emt 00:00:50]} Qe7 {[%clk 00:01:54]} {[%emt 00:00:06]} 29.
Rxf8 {[%clk 00:01:35]} {[%emt 00:00:51]} Qxf8 {[%clk 00:02:19]} {[%emt
00:00:05]} 30. Rf1 {[%clk 00:01:08]} {[%emt 00:00:57]} Qe7 {[%clk 00:02:01]}
{[%emt 00:00:48]} 31. a4 {[%clk 00:00:34]} {[%emt 00:01:05]} a6 {[%clk
00:01:17]} {[%emt 00:01:14]} 32. axb5 {[%clk 00:00:55]} {[%emt 00:00:09]} axb5
{[%clk 00:01:41]} {[%emt 00:00:06]} 33. Ra1 {[%clk 00:01:08]} {[%emt 00:00:16]}
Nxd5 {[%clk 00:02:02]} {[%emt 00:00:09]} 34. Qd2 {[%clk 00:00:46]} {[%emt
00:00:52]} Nf6 {[%clk 00:02:05]} {[%emt 00:00:27]} 35. Qa5 {[%clk 00:00:31]}
{[%emt 00:00:46]} Nxe4 {[%clk 00:01:41]} {[%emt 00:00:53]} 36. Qxb5 {[%clk
00:00:35]} {[%emt 00:00:27]} Nf2+ {[%clk 00:01:48]} {[%emt 00:00:22]} 37. Kg1
{[%clk 00:00:59]} {[%emt 00:00:06]} Re1+ {[%clk 00:02:10]} {[%emt 00:00:07]} 38.
Rxe1 {[%clk 00:01:04]} {[%emt 00:00:25]} Qxe1+ {[%clk 00:02:35]} {[%emt
00:00:06]} 39. Bf1 {[%clk 00:00:46]} {[%emt 00:00:48]} Kh6 {[%clk 00:01:35]}
{[%emt 00:01:29]} 40. Qc4 {[%clk 00:00:33]} {[%emt 00:00:44]} Qe3 {[%clk
00:01:37]} {[%emt 00:00:28]} 41. Kg2 {[%clk 00:22:08]} {[%emt 00:08:55]} Kg7
{[%clk 00:13:42]} {[%emt 00:18:24]} 42. Qa4 {[%clk 00:17:34]} {[%emt 00:05:05]}
Ne4 {[%clk 00:13:12]} {[%emt 00:01:00]} 43. Qd7+ {[%clk 00:17:13]} {[%emt
00:00:51]} Kh6 {[%clk 00:08:35]} {[%emt 00:05:07]} 44. Bc4 {[%clk 00:07:26]}
{[%emt 00:10:18]} Qf2+ {[%clk 00:05:03]} {[%emt 00:04:02]} 45. Kh1 {[%clk
00:07:33]} {[%emt 00:00:22]} Qf5 {[%clk 00:05:05]} {[%emt 00:00:28]} 46. Qd8
{[%clk 00:05:16]} {[%emt 00:02:48]} Ng5 {[%clk 00:05:13]} {[%emt 00:00:22]} 47.
Kg1 {[%clk 00:03:18]} {[%emt 00:02:28]} Qe5 {[%clk 00:02:53]} {[%emt 00:02:47]}
48. Qf8+ {[%clk 00:02:42]} {[%emt 00:01:09]} Kh5 {[%clk 00:02:15]} {[%emt
00:01:08]} 49. Qf1 {[%clk 00:01:56]} {[%emt 00:01:17]} Qf5 {[%clk 00:00:53]}
{[%emt 00:01:51]} 50. Qd1+ {[%clk 00:00:50]} {[%emt 00:01:36]} Qf3 {[%clk
00:00:47]} {[%emt 00:00:36]} 51. Qxf3+ {[%clk 00:00:34]} {[%emt 00:00:46]}
Nxf3+ {[%clk 00:01:11]} {[%emt 00:00:07]} 52. Kg2 {[%clk 00:00:56]} {[%emt
00:00:07]} Ne5 {[%clk 00:01:00]} {[%emt 00:00:41]} 53. Bg8 {[%clk 00:00:49]}
{[%emt 00:00:37]} h6 {[%clk 00:01:00]} {[%emt 00:00:30]} 54. h4 {[%clk
00:00:45]} {[%emt 00:00:34]} g5 {[%clk 00:01:02]} {[%emt 00:00:28]} 55. Kh3
{[%clk 00:01:01]} {[%emt 00:00:15]} gxh4 {[%clk 00:01:14]} {[%emt 00:00:18]} 56.
gxh4 {[%clk 00:01:22]} {[%emt 00:00:08]} Ng6 {[%clk 00:00:58]} {[%emt
00:00:46]} 57. Bf7 {[%clk 00:01:31]} {[%emt 00:00:21]} d5 {[%clk 00:01:23]}
{[%emt 00:00:06]} 58. Kg3 {[%clk 00:01:10]} {[%emt 00:00:50]} c4 {[%clk
00:00:52]} {[%emt 00:01:02]} 59. bxc4 {[%clk 00:00:54]} {[%emt 00:00:46]} dxc4
{[%clk 00:01:15]} {[%emt 00:00:06]} 60. Kf3 {[%clk 00:00:45]} {[%emt 00:00:39]}
1/2-1/2

[Event "Schack-SM 2023: Mastarklassen"]
[Site "Helsingborg Arena, Mellersta Stenbocksgatan 14, Helsingborg, Sweden"]
[Date "2023.07.01"]
[Round "1.5"]
[White "Joensson, Jacob"]
[Black "Mardell, Jimmy"]
[Result "1/2-1/2"]
[TimeControl "90 minutes for 40 moves + 30 minutes for the rest of games + 30 seconds per move from move one."]
[WhiteElo "2039"]
[BlackElo "2160"]

1. d4 {[%clk 01:30:58]} {[%emt 00:00:02]} d5 {[%clk 01:30:44]} {[%emt
00:00:16]} 2. c4 {[%clk 01:31:22]} {[%emt 00:00:05]} c6 {[%clk 01:31:11]}
{[%emt 00:00:04]} 3. Nf3 {[%clk 01:31:48]} {[%emt 00:00:04]} Nf6 {[%clk
01:31:35]} {[%emt 00:00:05]} 4. Nc3 {[%clk 01:32:11]} {[%emt 00:00:08]} e6
{[%clk 01:31:42]} {[%emt 00:00:23]} 5. Bg5 {[%clk 01:32:34]} {[%emt 00:00:07]}
h6 {[%clk 01:31:56]} {[%emt 00:00:17]} 6. Bxf6 {[%clk 01:32:58]} {[%emt
00:00:05]} Qxf6 {[%clk 01:32:18]} {[%emt 00:00:07]} 7. e3 {[%clk 01:33:22]}
{[%emt 00:00:06]} Nd7 {[%clk 01:23:04]} {[%emt 00:09:43]} 8. Bd3 {[%clk
01:31:47]} {[%emt 00:02:06]} Bb4 {[%clk 01:23:22]} {[%emt 00:00:12]} 9. O-O
{[%clk 01:30:16]} {[%emt 00:02:00]} dxc4 {[%clk 01:18:30]} {[%emt 00:05:23]} 10.
Bxc4 {[%clk 01:29:54]} {[%emt 00:00:53]} O-O {[%clk 01:18:38]} {[%emt
00:00:22]} 11. Ne4 {[%clk 01:23:05]} {[%emt 00:07:18]} Qe7 {[%clk 01:17:16]}
{[%emt 00:01:52]} 12. a3 {[%clk 01:23:15]} {[%emt 00:00:20]} Bd6 {[%clk
01:03:01]} {[%emt 00:14:45]} 13. Rc1 {[%clk 01:21:47]} {[%emt 00:01:58]} Bc7
{[%clk 01:00:09]} {[%emt 00:03:23]} 14. Ba2 {[%clk 01:14:52]} {[%emt 00:07:24]}
a5 {[%clk 00:56:03]} {[%emt 00:04:36]} 15. Qc2 {[%clk 01:06:17]} {[%emt
00:09:05]} Bb8 {[%clk 00:42:58]} {[%emt 00:13:36]} 16. Rfd1 {[%clk 01:02:58]}
{[%emt 00:03:48]} e5 {[%clk 00:36:46]} {[%emt 00:06:42]} 17. d5 {[%clk
00:59:25]} {[%emt 00:04:03]} cxd5 {[%clk 00:35:39]} {[%emt 00:01:37]} 18. Rxd5
{[%clk 00:58:00]} {[%emt 00:01:54]} Ra6 {[%clk 00:23:16]} {[%emt 00:12:54]} 19.
Qd2 {[%clk 00:37:58]} {[%emt 00:20:33]} Nf6 {[%clk 00:17:13]} {[%emt 00:06:32]}
20. Nxf6+ {[%clk 00:38:01]} {[%emt 00:00:26]} Rxf6 {[%clk 00:14:41]} {[%emt
00:03:02]} 21. Rdc5 {[%clk 00:37:05]} {[%emt 00:01:26]} Bg4 {[%clk 00:13:03]}
{[%emt 00:02:08]} 22. Ne1 {[%clk 00:32:04]} {[%emt 00:05:32]} b6 {[%clk
00:08:01]} {[%emt 00:05:33]} 23. Rc6 {[%clk 00:30:42]} {[%emt 00:01:52]} Rxc6
{[%clk 00:08:27]} {[%emt 00:00:04]} 24. Rxc6 {[%clk 00:31:05]} {[%emt
00:00:06]} Rd8 {[%clk 00:08:37]} {[%emt 00:00:20]} 25. Qc3 {[%clk 00:31:12]}
{[%emt 00:00:22]} e4 {[%clk 00:05:37]} {[%emt 00:03:31]} 26. h3 {[%clk
00:25:23]} {[%emt 00:06:18]} Be5 {[%emt 00:04:38]} 27. Qc2 Bd1 {[%clk
00:01:21]} {[%emt 00:00:49]} 28. Qc1 {[%clk 00:26:06]} {[%emt 00:00:07]} Ba4
{[%clk 00:00:48]} {[%emt 00:01:04]} 29. Rc8 {[%clk 00:26:30]} {[%emt 00:00:05]}
Qd7 {[%clk 00:00:58]} {[%emt 00:00:21]} 30. Rxd8+ {[%clk 00:19:36]} {[%emt
00:07:23]} Qxd8 {[%clk 00:01:25]} {[%emt 00:00:04]} 31. Bxf7+ {[%clk 00:19:56]}
{[%emt 00:00:10]} Kxf7 {[%clk 00:01:52]} {[%emt 00:00:02]} 32. Qc4+ {[%clk
00:20:18]} {[%emt 00:00:08]} Kf8 {[%clk 00:02:02]} {[%emt 00:00:20]} 33. Qxa4
{[%clk 00:20:40]} {[%emt 00:00:07]} Qd2 {[%clk 00:01:42]} {[%emt 00:00:50]} 34.
Kf1 {[%clk 00:20:44]} {[%emt 00:00:27]} Bxb2 {[%clk 00:01:03]} {[%emt
00:01:10]} 35. Qxe4 {[%clk 00:17:49]} {[%emt 00:03:25]} Bxa3 {[%clk 00:01:15]}
{[%emt 00:00:18]} 36. Qa8+ {[%clk 00:10:46]} {[%emt 00:07:32]} Kf7 {[%clk
00:01:36]} {[%emt 00:00:09]} 37. Qf3+ {[%clk 00:10:29]} {[%emt 00:00:47]} Kg8
{[%clk 00:01:43]} {[%emt 00:00:23]} 38. Qe2 {[%clk 00:10:10]} {[%emt 00:00:49]}
Qxe2+ {[%clk 00:01:42]} {[%emt 00:00:31]} 39. Kxe2 {[%clk 00:10:31]} {[%emt
00:00:09]} Kf7 {[%clk 00:01:48]} {[%emt 00:00:25]} 40. Kd3 {[%clk 00:10:42]}
{[%emt 00:00:19]} b5 {[%clk 00:01:23]} {[%emt 00:00:54]} 41. Nc2 {[%clk
00:03:48]} {[%emt 00:07:23]} Bb2 {[%clk 00:28:22]} {[%emt 00:03:32]} 42. Nd4
{[%clk 00:34:03]} {[%emt 00:00:15]} Bxd4 {[%clk 00:28:03]} {[%emt 00:00:49]} 43.
Kxd4 {[%clk 00:34:27]} {[%emt 00:00:06]} a4 {[%clk 00:27:55]} {[%emt 00:00:39]}
44. e4 {[%clk 00:33:35]} {[%emt 00:01:21]} g5 {[%clk 00:25:02]} {[%emt
00:03:22]} 45. g3 {[%clk 00:31:39]} {[%emt 00:02:27]} h5 {[%clk 00:24:14]}
{[%emt 00:01:17]} 46. f3 {[%clk 00:31:54]} {[%emt 00:00:16]} Ke7 {[%clk
00:21:06]} {[%emt 00:03:38]} 47. h4 {[%emt 00:04:42]} gxh4 {[%clk 00:17:52]}
{[%emt 00:00:12]} 48. gxh4 {[%clk 00:31:39]} {[%emt 00:00:05]} b4 {[%clk
00:17:09]} {[%emt 00:01:14]} 49. Kc4 {[%clk 00:32:02]} {[%emt 00:00:06]} a3
{[%clk 00:16:53]} {[%emt 00:00:46]} 50. Kb3 {[%clk 00:32:27]} {[%emt 00:00:05]}
Ke6 {[%clk 00:17:14]} {[%emt 00:00:10]} 51. f4 {[%clk 00:32:51]} {[%emt
00:00:05]} Kf6 {[%clk 00:17:33]} {[%emt 00:00:11]} 1/2-1/2

[Event "Schack-SM 2023: Veteran-SM 65+"]
[Site "Helsingborg Arena, Mellersta Stenbocksgatan 14, Helsingborg, Sweden"]
[Date "2023.07.01"]
[Round "1.4"]
[White "Kvarby, Anders"]
[Black "Malmdin, Nils-Ake"]
[Result "0-1"]
[TimeControl "90 minutes for 40 moves + 30 minutes for the rest of games + 30 seconds per move from move one."]
[BlackTitle "FM"]
[WhiteElo "1847"]
[BlackElo "2091"]

1. d4 {[%clk 01:30:54]} {[%emt 00:00:04]} Nf6 {[%clk 01:30:40]} {[%emt
00:00:21]} 2. Bf4 {[%clk 01:30:30]} {[%emt 00:00:53]} d6 {[%clk 01:30:13]}
{[%emt 00:00:56]} 3. Nc3 {[%clk 01:29:02]} {[%emt 00:01:59]} a6 {[%clk
01:22:38]} {[%emt 00:08:06]} 4. e4 {[%clk 01:22:06]} {[%emt 00:07:26]} g6
{[%clk 01:19:53]} {[%emt 00:03:14]} 5. f3 {[%clk 01:17:18]} {[%emt 00:05:18]}
Nc6 {[%clk 01:16:45]} {[%emt 00:03:38]} 6. a3 {[%clk 01:10:35]} {[%emt
00:07:14]} b5 {[%clk 01:15:44]} {[%emt 00:01:30]} 7. Qd2 {[%clk 01:07:58]}
{[%emt 00:03:08]} Rb8 {[%clk 01:13:43]} {[%emt 00:02:31]} 8. Nge2 {[%clk
01:04:48]} {[%emt 00:03:40]} h5 {[%clk 01:10:16]} {[%emt 00:03:57]} 9. d5
{[%clk 01:02:48]} {[%emt 00:02:30]} Ne5 {[%clk 01:07:40]} {[%emt 00:03:05]} 10.
Nd4 {[%clk 00:59:05]} {[%emt 00:04:13]} Bd7 {[%clk 01:07:34]} {[%emt 00:00:35]}
11. b4 {[%clk 00:54:02]} {[%emt 00:05:35]} Bg7 {[%clk 01:01:54]} {[%emt
00:06:09]} 12. Rb1 {[%clk 00:53:26]} {[%emt 00:01:04]} h4 {[%clk 00:58:00]}
{[%emt 00:04:26]} 13. Bg5 {[%clk 00:39:18]} {[%emt 00:14:38]} h3 {[%clk
00:54:36]} {[%emt 00:03:54]} 14. f4 {[%clk 00:33:14]} {[%emt 00:06:34]} hxg2
{[%clk 00:43:47]} {[%emt 00:11:18]} 15. Bxg2 {[%clk 00:31:38]} {[%emt
00:02:08]} Nc4 {[%clk 00:43:52]} {[%emt 00:00:24]} 16. Qd3 {[%clk 00:30:43]}
{[%emt 00:01:25]} Ng4 {[%clk 00:41:19]} {[%emt 00:03:01]} 17. h3 {[%clk
00:30:06]} {[%emt 00:01:09]} Nge3 {[%clk 00:40:55]} 0-1

[Event "Schack-SM 2023: Veteran-SM 50+"]
[Site "Helsingborg Arena, Mellersta Stenbocksgatan 14, Helsingborg, Sweden"]
[Date "2023.07.01"]
[Round "1.4"]
[White "Traff, Par"]
[Black "Eriksson, Bengt"]
[Result "0-1"]
[TimeControl "90 minutes for 40 moves + 30 minutes for the rest of games + 30 seconds per move from move one."]
[WhiteElo "1791"]
[BlackElo "2016"]

1. d4 {[%clk 01:30:55]} {[%emt 00:00:04]} Nf6 {[%clk 01:26:06]} {[%emt
00:04:54]} 2. c4 {[%clk 01:29:57]} {[%emt 00:01:28]} e5 {[%clk 01:25:01]}
{[%emt 00:01:35]} 3. dxe5 {[%clk 01:29:27]} {[%emt 00:00:59]} Ng4 {[%clk
01:25:20]} {[%emt 00:00:12]} 4. Nf3 {[%clk 01:29:41]} {[%emt 00:00:16]} Bc5
{[%clk 01:25:23]} {[%emt 00:00:28]} 5. e3 {[%clk 01:29:54]} {[%emt 00:00:17]}
Nc6 {[%clk 01:25:35]} {[%emt 00:00:17]} 6. e6 {[%clk 01:26:32]} {[%emt
00:03:51]} fxe6 {[%clk 01:19:24]} {[%emt 00:06:41]} 7. Be2 {[%clk 01:24:20]}
{[%emt 00:02:43]} O-O {[%clk 01:11:39]} {[%emt 00:08:15]} 8. Nc3 {[%clk
01:19:51]} {[%emt 00:04:59]} a5 {[%clk 01:10:48]} {[%emt 00:01:22]} 9. Ne4
{[%clk 01:17:38]} {[%emt 00:02:41]} Ba7 {[%clk 01:02:22]} {[%emt 00:08:57]} 10.
h3 {[%clk 01:14:26]} {[%emt 00:03:42]} Nf6 {[%clk 00:50:22]} {[%emt 00:12:30]}
11. Ng3 {[%clk 01:11:30]} {[%emt 00:03:24]} e5 {[%clk 00:47:04]} {[%emt
00:03:49]} 12. e4 {[%clk 01:09:26]} {[%emt 00:02:34]} d6 {[%clk 00:46:05]}
{[%emt 00:01:29]} 13. O-O {[%clk 01:09:27]} {[%emt 00:00:29]} Kh8 {[%clk
00:40:28]} {[%emt 00:06:08]} 14. Qb3 {[%clk 01:02:08]} {[%emt 00:07:48]} a4
{[%clk 00:37:53]} {[%emt 00:03:06]} 15. Qd3 {[%clk 01:00:42]} {[%emt 00:01:55]}
Nd7 {[%clk 00:32:32]} {[%emt 00:05:52]} 16. Be3 {[%clk 00:57:24]} {[%emt
00:03:47]} Nc5 {[%clk 00:32:31]} {[%emt 00:00:30]} 17. Qd2 {[%clk 00:55:40]}
{[%emt 00:02:15]} Ne6 {[%clk 00:30:27]} {[%emt 00:02:34]} 18. Bxa7 {[%clk
00:51:45]} {[%emt 00:04:26]} Rxa7 {[%clk 00:30:52]} {[%emt 00:00:06]} 19. b4
{[%clk 00:50:05]} {[%emt 00:02:09]} axb3 {[%clk 00:10:52]} {[%emt 00:20:30]} 20.
axb3 {[%clk 00:50:16]} {[%emt 00:00:19]} Rxa1 {[%clk 00:11:20]} {[%emt
00:00:02]} 21. Rxa1 {[%clk 00:50:33]} {[%emt 00:00:13]} Ned4 {[%clk 00:11:43]}
{[%emt 00:00:07]} 22. Nxd4 {[%clk 00:49:24]} {[%emt 00:01:38]} Nxd4 {[%clk
00:12:11]} {[%emt 00:00:03]} 23. Bd1 {[%clk 00:48:45]} {[%emt 00:01:08]} Bd7
{[%clk 00:09:56]} {[%emt 00:02:46]} 24. Ra2 {[%clk 00:41:22]} {[%emt 00:07:53]}
Qh4 {[%clk 00:09:16]} {[%emt 00:01:10]} 25. Kh2 {[%clk 00:41:33]} {[%emt
00:00:18]} g5 {[%clk 00:04:00]} {[%emt 00:05:47]} 26. f3 {[%clk 00:40:50]}
{[%emt 00:01:12]} Kg7 {[%clk 00:03:49]} {[%emt 00:00:42]} 27. Nh1 {[%clk
00:36:59]} {[%emt 00:04:20]} Kg6 {[%clk 00:00:45]} {[%emt 00:03:36]} 28. Nf2
{[%clk 00:36:06]} {[%emt 00:01:22]} Qh6 {[%clk 00:01:12]} {[%emt 00:00:03]} 29.
Ng4 {[%clk 00:28:48]} {[%emt 00:07:47]} Qg7 {[%clk 00:01:41]} {[%emt 00:00:02]}
30. Ne3 {[%clk 00:27:47]} {[%emt 00:01:31]} h5 {[%clk 00:00:52]} {[%emt
00:01:19]} 31. Ra7 {[%clk 00:23:55]} {[%emt 00:04:22]} Rb8 {[%clk 00:01:18]}
{[%emt 00:00:04]} 32. Nd5 {[%clk 00:19:39]} {[%emt 00:04:46]} c6 {[%clk
00:01:43]} {[%emt 00:00:06]} 33. Ne3 {[%clk 00:18:42]} {[%emt 00:01:26]} Qf7
{[%clk 00:01:52]} {[%emt 00:00:21]} 34. Nf1 {[%clk 00:18:23]} {[%emt 00:00:49]}
Be6 {[%clk 00:00:48]} {[%emt 00:01:33]} 35. Qd3 {[%clk 00:18:04]} {[%emt
00:00:49]} c5 {[%clk 00:00:35]} {[%emt 00:00:45]} 36. Qe3 {[%clk 00:16:54]}
{[%emt 00:01:39]} Bd7 {[%clk 00:00:36]} {[%emt 00:00:29]} 37. Nd2 {[%clk
00:16:51]} {[%emt 00:00:33]} Ne6 {[%clk 00:00:55]} {[%emt 00:00:11]} 38. Nb1
{[%clk 00:14:01]} {[%emt 00:03:19]} Nf4 {[%clk 00:00:32]} {[%emt 00:00:54]} 39.
Nc3 {[%clk 00:14:04]} {[%emt 00:00:27]} Be6 {[%clk 00:00:34]} {[%emt 00:00:28]}
40. Ra2 {[%clk 00:10:34]} {[%emt 00:03:59]} Rh8 {[%clk 00:00:45]} {[%emt
00:00:19]} 41. Rd2 {[%clk 00:08:03]} {[%emt 00:03:01]} Rd8 {[%clk 00:23:51]}
{[%emt 00:07:23]} 42. Nd5 {[%clk 00:32:31]} {[%emt 00:06:04]} Qd7 {[%clk
00:17:48]} {[%emt 00:06:32]} 43. Bc2 {[%clk 00:31:31]} {[%emt 00:01:30]} Bxh3
{[%clk 00:09:36]} {[%emt 00:08:42]} 44. Qg1 {[%clk 00:21:22]} {[%emt 00:10:39]}
Be6 {[%clk 00:06:36]} {[%emt 00:03:30]} 45. Nb6 {[%clk 00:17:11]} {[%emt
00:04:42]} Qc7 {[%clk 00:05:03]} {[%emt 00:02:03]} 46. Na4 {[%clk 00:17:31]}
{[%emt 00:00:10]} h4 {[%clk 00:02:49]} {[%emt 00:02:44]} 47. Qd1 {[%clk
00:16:28]} {[%emt 00:01:32]} Nh5 {[%clk 00:01:41]} {[%emt 00:01:39]} 48. Nc3
{[%clk 00:16:16]} {[%emt 00:00:41]} Qf7 {[%clk 00:01:00]} {[%emt 00:01:12]} 49.
Nd5 {[%clk 00:12:27]} {[%emt 00:04:19]} Bxd5 {[%clk 00:01:19]} {[%emt
00:00:11]} 50. Rxd5 {[%clk 00:12:26]} {[%emt 00:00:31]} Qf8 {[%clk 00:00:32]}
{[%emt 00:01:17]} 51. Qd2 {[%clk 00:12:30]} {[%emt 00:00:26]} Nf4 {[%clk
00:00:58]} {[%emt 00:00:05]} 52. Qe3 {[%clk 00:12:12]} {[%emt 00:00:47]} Nxd5
{[%clk 00:01:01]} {[%emt 00:00:27]} 53. exd5+ {[%clk 00:12:30]} {[%emt
00:00:12]} Kh6 {[%clk 00:00:59]} {[%emt 00:00:32]} 54. Qd3 {[%clk 00:12:29]}
{[%emt 00:00:31]} Qg7 {[%clk 00:00:47]} {[%emt 00:00:42]} 55. Qd2 {[%clk
00:12:18]} {[%emt 00:00:41]} Qf6 {[%clk 00:00:43]} {[%emt 00:00:34]} 56. Qd3
{[%clk 00:12:38]} {[%emt 00:00:09]} Qf4+ {[%clk 00:01:03]} {[%emt 00:00:11]} 57.
Kg1 {[%clk 00:13:01]} {[%emt 00:00:06]} e4 {[%clk 00:01:26]} {[%emt 00:00:08]}
58. Qxe4 {[%clk 00:12:33]} {[%emt 00:00:57]} Qxe4 {[%clk 00:01:50]} {[%emt
00:00:06]} 59. Bxe4 {[%clk 00:12:48]} {[%emt 00:00:15]} b6 {[%clk 00:01:30]}
{[%emt 00:00:51]} 60. g3 {[%clk 00:12:28]} {[%emt 00:00:49]} hxg3 {[%clk
00:01:22]} {[%emt 00:00:39]} 61. Kg2 {[%clk 00:12:49]} {[%emt 00:00:09]} Ra8
{[%clk 00:01:33]} {[%emt 00:00:19]} 62. Kxg3 {[%clk 00:13:13]} {[%emt
00:00:06]} Ra3 {[%clk 00:01:49]} {[%emt 00:00:13]} 63. Kg4 {[%clk 00:13:17]}
{[%emt 00:00:26]} Rxb3 {[%clk 00:01:36]} {[%emt 00:00:44]} 64. Kf5 {[%clk
00:13:40]} {[%emt 00:00:07]} b5 {[%clk 00:00:43]} {[%emt 00:01:23]} 65. Ke6
{[%clk 00:12:49]} {[%emt 00:01:20]} bxc4 {[%clk 00:00:57]} {[%emt 00:00:17]} 66.
Kxd6 {[%clk 00:13:12]} {[%emt 00:00:07]} c3 {[%clk 00:01:17]} {[%emt 00:00:11]}
67. Kc7 {[%clk 00:13:19]} {[%emt 00:00:22]} Rb2 {[%clk 00:00:36]} {[%emt
00:01:11]} 68. d6 {[%clk 00:13:42]} {[%emt 00:00:07]} c2 {[%clk 00:00:41]}
{[%emt 00:00:24]} 69. d7 {[%clk 00:13:51]} {[%emt 00:00:22]} c1=Q {[%clk
00:01:01]} {[%emt 00:00:10]} 70. d8=Q {[%clk 00:14:13]} {[%emt 00:00:07]} Qf4+
{[%clk 00:00:44]} {[%emt 00:00:48]} 71. Kc6 {[%clk 00:14:24]} {[%emt 00:00:19]}
Qe5 {[%clk 00:00:40]} {[%emt 00:00:34]} 72. Qf8 {[%clk 00:13:54]} {[%emt
00:01:00]} Kh5 {[%clk 00:00:40]} {[%emt 00:00:30]} 73. Qxc5 {[%clk 00:12:31]}
{[%emt 00:01:53]} Qxc5+ {[%clk 00:00:51]} {[%emt 00:00:19]} 74. Kxc5 {[%clk
00:12:55]} {[%emt 00:00:06]} Kh4 {[%clk 00:01:02]} {[%emt 00:00:20]} 75. Kd4
{[%clk 00:13:09]} {[%emt 00:00:15]} Rb3 {[%clk 00:01:14]} {[%emt 00:00:17]} 76.
Bd5 {[%clk 00:13:10]} {[%emt 00:00:30]} Ra3 {[%clk 00:01:19]} {[%emt 00:00:25]}
77. Ke4 {[%clk 00:13:04]} {[%emt 00:00:36]} Kg3 {[%clk 00:01:25]} {[%emt
00:00:24]} 0-1

[ePGN "0.1;DGT LiveChess/2.2.5"]